[Event "CAT-chT Honor Division 2019"]
[Site "Catalonia"]
[Date "2019.02.16"]
[Round "5.10"]
[White "Vilar Lopez, Monica"]
[Black "Garcia De Blas, Esteban"]
[Result "0-1"]
[ECO "C02"]
[WhiteElo "2073"]
[BlackElo "1993"]
[Annotator "NA"]
[PlyCount "98"]
[EventDate "2019.01.16"]
[EventType "team-tourn"]
[EventCountry "ESP"]
[SourceTitle "playchess.com"]
[Source "ChessBase"]
[SourceQuality "1"]
[WhiteTeam "Figueres"]
[BlackTeam "Colon Sabadell Chessy"]
[TimeControl "5400+30"]

1. e4 {[%emt 0:00:00]} e6 {[%emt 0:00:18]} 2. d4 {[%emt 0:00:00]} d5 {[%emt 0:00:04]} 3. e5 {[%emt 0:00:00]} c5 {[%emt 0:00:07]} 4. c3 {[%emt 0:00:03]} Nc6 5. Nf3 {[%emt 0:00:11]} Qb6 {[%emt 0:00:15]} 6. Be2 {[%emt 0:00:20]} f6 {[%emt 0:01:02]} 7. exf6 {[%emt 0:07:26]} Nxf6 {[%emt 0:00:07]} 8. O-O {[%emt 0:00:34]} Bd6 {[%emt 0:02:03]} 9. Bd3 {[%emt 0:15:32]} O-O {[%emt 0:01:04]} 10. b3 {[%emt 0:07:20]} cxd4 {[%emt 0:06:41]} 11. cxd4 e5 {[%emt 0:05:55]} 12. dxe5 {[%emt 0:04:40]} Nxe5 {[%emt 0:00:19]} 13. Bb2 {[%emt 0:14:21]} Nxf3+ {[%emt 0:18:58]} 14. Qxf3 {[%emt 0:00:06]} Bxh2+ {[%emt 0:18:22]} 15. Kh1 {[%emt 0:33:29]} Bd6 {[%emt 0:33:34]} 16. Qe3 {[%emt 0:01:51]} Qb4 {[%emt 0:01:56]} 17. Qd4 {[%emt 0:03:46]} Bd7 {[%emt 0:02:34]} 18. Nd2 Qxd4 {[%emt 0:00:12]} 19. Bxd4 {[%emt 0:00:36]} b6 {[%emt 0:00:56]} 20. Nf3 {[%emt 0:05:17]} Rae8 {[%emt 0:01:58]} 21. Rac1 {[%emt 0:02:41]} Ne4 {[%emt 0:01:21]} 22. Rce1 {[%emt 0:00:56]} Bg4 {[%emt 0:00:15]} 23. Bxe4 {[%emt 0:00:46]} dxe4 {[%emt 0:00:22]} 24. Nd2 {[%emt 0:00:52]} Bb4 {[%emt 0:01:21]} 25. Rxe4 {[%emt 0:00:42]} Be2 {[%emt 0:00:12]} 26. Rxe2 {[%emt 0:00:20]} Rxe2 {[%emt 0:01:05]} 27. Nf3 {[%emt 0:00:34]} Rc8 {[%emt 0:01:03]} 28. Rd1 {[%emt 0:00:56]} Rxa2 29. Ng5 {[%emt 0:00:10]} Re2 {[%emt 0:00:56]} 30. Nf3 {[%emt 0:00:24]} Rec2 {[%emt 0:00:45]} 31. Be3 {[%emt 0:00:55]} Bc5 {[%emt 0:00:20]} 32. Bxc5 {[%emt 0:00:11]} R2xc5 {[%emt 0:00:34]} 33. Rd7 {[%emt 0:00:18]} R8c7 {[%emt 0:00:01]} 34. Rd8+ {[%emt 0:00:37]} Kf7 {[%emt 0:01:16]} 35. g3 {[%emt 0:00:46]} Ke7 {[%emt 0:00:26]} 36. Rd2 {[%emt 0:00:37]} Rc3 37. Nd4 {[%emt 0:00:18]} Kf7 {[%emt 0:01:09]} 38. Nb5 {[%emt 0:00:04]} Rc1+ {[%emt 0:00:43]} 39. Kg2 {[%emt 0:00:35]} Re7 {[%emt 0:00:32]} 40. Nd6+ {[%emt 0:01:01]} Kg6 {[%emt 0:00:11]} 41. Nc4 {[%emt 0:00:20]} h6 {[%emt 0:00:48]} 42. Ne3 {[%emt 0:00:13]} Kh7 {[%emt 0:00:16]} 43. Nf5 {[%emt 0:00:37]} Rec7 {[%emt 0:00:25]} 44. Rd8 {[%emt 0:00:52]} R1c2 {[%emt 0:00:19]} 45. Re8 {[%emt 0:00:35]} Rf7 46. g4 {[%emt 0:00:07]} g6 {[%emt 0:00:54]} 47. Re7 {[%emt 0:00:04]} Rxe7 {[%emt 0:00:16]} 48. Nxe7 {[%emt 0:00:07]} a5 {[%emt 0:00:22]} 49. Nd5 b5 0-1

[Event "CAT-chT Honor Division 2019"]
[Site "Catalonia"]
[Date "2019.02.23"]
[Round "6.2"]
[White "Krysa, Leandro"]
[Black "Prie, Eric"]
[Result "1-0"]
[ECO "A40"]
[WhiteElo "2499"]
[BlackElo "2459"]
[Annotator "ChessBase"]
[PlyCount "87"]
[EventDate "2019.01.16"]
[EventType "team-tourn"]
[EventCountry "ESP"]
[SourceTitle "playchess.com"]
[Source "ChessBase"]
[SourceQuality "1"]
[WhiteTeam "Mollet"]
[BlackTeam "Gerunda"]
[TimeControl "5400+30"]

1. d4 {[%emt 0:00:00]} Nf6 {[%emt 0:10:47]} 2. c4 {[%emt 0:00:00]} c5 {[%emt 0:00:11]} 3. d5 {[%emt 0:00:17]} b5 {[%emt 0:00:23]} 4. cxb5 {[%emt 0:00:24]} a6 {[%emt 0:01:49]} 5. e3 {[%emt 0:00:44]} e6 {[%emt 0:00:42]} 6. Nc3 {[%emt 0:05:23]} exd5 {[%emt 0:00:32]} 7. Nxd5 {[%emt 0:06:21]} Bb7 {[%emt 0:03:29]} 8. Nxf6+ {[%emt 0:00:21]} Qxf6 {[%emt 0:00:11]} 9. Nf3 {[%emt 0:00:10]} Be7 {[%emt 0:00:07]} 10. Be2 {[%emt 0:00:22]} axb5 {[%emt 0:03:32]} 11. Bxb5 {[%emt 0:00:07]} O-O {[%emt 0:00:19]} 12. O-O {[%emt 0:00:42]} d5 {[%emt 0:04:00]} 13. a4 {[%emt 0:03:00]} Rd8 {[%emt 0:01:12]} 14. Ra2 {[%emt 0:01:26]} Nc6 {[%emt 0:04:34]} 15. b3 {[%emt 0:00:19]} d4 {[%emt 0:24:58]} 16. exd4 {[%emt 0:07:45]} Nxd4 {[%emt 0:00:44]} 17. Nxd4 {[%emt 0:02:41]} cxd4 {[%emt 0:00:37]} 18. Qd3 {[%emt 0:07:19]} Rac8 {[%emt 0:06:44]} 19. Bc4 {[%emt 0:02:57]} Bd6 {[%emt 0:07:02]} 20. Re2 {[%emt 0:06:21]} g6 {[%emt 0:16:08]} 21. Bd2 {[%emt 0:17:35]} Rc5 {[%emt 0:01:32]} 22. Rfe1 {[%emt 0:05:19]} Rh5 {[%emt 0:02:27]} 23. h3 {[%emt 0:01:30]} Kg7 {[%emt 0:04:12]} 24. a5 {[%emt 0:04:07]} Rf5 {[%emt 0:04:39]} 25. a6 {[%emt 0:02:39]} Bc6 {[%emt 0:00:29]} 26. b4 {[%emt 0:03:52]} Ba8 {[%emt 0:00:23]} 27. b5 {[%emt 0:01:05]} Bc5 {[%emt 0:00:31]} 28. f4 {[%emt 0:01:14]} h5 {[%emt 0:01:12]} 29. Re5 {[%emt 0:02:35]} h4 {[%emt 0:00:17]} 30. Ba5 {[%emt 0:02:46]} Rc8 {[%emt 0:00:26]} 31. Bd2 {[%emt 0:07:43]} Bb6 {[%emt 0:00:01]} 32. Re7 {[%emt 0:02:50]} Qd6 {[%emt 0:00:36]} 33. Re8 {[%emt 0:02:00]} Rxc4 {[%emt 0:01:13]} 34. Qxc4 {[%emt 0:01:15]} Bd5 {[%emt 0:00:21]} 35. Qd3 {[%emt 0:00:56]} Be6 {[%emt 0:00:23]} 36. Ra1 {[%emt 0:01:53]} Qc5 {[%emt 0:00:23]} 37. Rc1 {[%emt 0:01:11]} Qd5 {[%emt 0:00:14]} 38. Rb8 {[%emt 0:00:40]} Qd6 {[%emt 0:00:25]} 39. Rxb6 {[%emt 0:00:45]} Qxb6 {[%emt 0:00:05]} 40. Rc6 {[%emt 0:00:14]} Qxb5 {[%emt 0:00:24]} 41. Qxd4+ {[%emt 0:00:25]} Kh7 {[%emt 0:01:36]} 42. Bc3 {[%emt 0:00:35]} Qb1+ {[%emt 0:00:36]} 43. Kh2 {[%emt 0:00:05]} f6 {[%emt 0:00:31]} 44. Rxe6 {[%emt 0:00:15]} 1-0

[Event "CAT-chT Honor Division 2019"]
[Site "Catalonia"]
[Date "2019.02.23"]
[Round "6.2"]
[White "Vidal Zamora, Alex"]
[Black "Escuder, Jordi"]
[Result "1/2-1/2"]
[ECO "D45"]
[WhiteElo "2421"]
[BlackElo "2271"]
[Annotator "NA"]
[PlyCount "38"]
[EventDate "2019.01.16"]
[EventType "team-tourn"]
[EventCountry "ESP"]
[SourceTitle "playchess.com"]
[Source "ChessBase"]
[SourceQuality "1"]
[WhiteTeam "CE Olot"]
[BlackTeam "CE Tres Peons"]
[TimeControl "5400+30"]

1. d4 d5 2. c4 e6 3. Nc3 c6 4. e3 Nf6 5. Nf3 Nbd7 6. Qc2 Bd6 7. b3 O-O 8. Bb2 Qe7 9. Rd1 Re8 10. Be2 b6 11. O-O Bb7 12. e4 dxe4 13. Nxe4 Nxe4 14. Qxe4 Nf8 15. Ne5 c5 16. Qe3 cxd4 17. Bxd4 f6 18. Nf3 Rad8 19. Nh4 e5 1/2-1/2

[Event "CAT-chT Honor Division 2019"]
[Site "Catalonia"]
[Date "2019.02.23"]
[Round "6.3"]
[White "Valle Maytin, Luis Enrique"]
[Black "Sosa, Tomas"]
[Result "0-1"]
[ECO "A40"]
[WhiteElo "2285"]
[BlackElo "2499"]
[Annotator "ChessBase"]
[PlyCount "92"]
[EventDate "2019.01.16"]
[EventType "team-tourn"]
[EventCountry "ESP"]
[SourceTitle "playchess.com"]
[Source "ChessBase"]
[SourceQuality "1"]
[WhiteTeam "Gerunda"]
[BlackTeam "Mollet"]
[TimeControl "5400+30"]

1. d4 g6 {[%emt 0:00:09]} 2. Nf3 {[%emt 0:00:00]} Bg7 {[%emt 0:00:07]} 3. g3 b5 4. Bg2 {[%emt 0:01:29]} Bb7 {[%emt 0:01:33]} 5. O-O {[%emt 0:00:03]} Nf6 {[%emt 0:00:54]} 6. Nbd2 {[%emt 0:01:57]} O-O {[%emt 0:09:44]} 7. Re1 {[%emt 0:11:59]} d6 {[%emt 0:08:01]} 8. c4 {[%emt 0:06:35]} bxc4 {[%emt 0:02:55]} 9. Nxc4 {[%emt 0:00:08]} Nbd7 {[%emt 0:00:18]} 10. b3 {[%emt 0:10:06]} a5 11. Bb2 {[%emt 0:00:46]} Qb8 {[%emt 0:15:47]} 12. Ncd2 {[%emt 0:17:37]} c5 {[%emt 0:06:00]} 13. Rc1 {[%emt 0:01:26]} cxd4 {[%emt 0:03:17]} 14. Bxd4 {[%emt 0:03:26]} e5 {[%emt 0:05:31]} 15. Ba1 {[%emt 0:03:11]} d5 {[%emt 0:10:31]} 16. e3 {[%emt 0:02:47]} Ra7 {[%emt 0:06:59]} 17. Qc2 {[%emt 0:06:35]} Ba8 {[%emt 0:00:07]} 18. Red1 {[%emt 0:02:28]} Re8 {[%emt 0:02:29]} 19. Bc3 {[%emt 0:06:55]} h5 {[%emt 0:03:57]} 20. Qb2 {[%emt 0:02:26]} Bh6 {[%emt 0:00:53]} 21. Rc2 {[%emt 0:04:55]} Ra6 {[%emt 0:07:16]} 22. Ne1 {[%emt 0:09:53]} Ng4 {[%emt 0:05:04]} 23. Nf1 {[%emt 0:00:30]} Ngf6 {[%emt 0:04:05]} 24. Nd2 {[%emt 0:03:00]} h4 {[%emt 0:01:56]} 25. Nf1 {[%emt 0:00:54]} hxg3 {[%emt 0:01:30]} 26. hxg3 {[%emt 0:00:02]} Bg7 {[%emt 0:02:59]} 27. Rcd2 {[%emt 0:01:42]} Nc5 {[%emt 0:00:29]} 28. Nd3 {[%emt 0:00:41]} Nxd3 {[%emt 0:00:23]} 29. Rxd3 {[%emt 0:00:02]} d4 {[%emt 0:00:45]} 30. exd4 {[%emt 0:00:32]} Bxg2 {[%emt 0:00:03]} 31. Kxg2 {[%emt 0:00:09]} e4 {[%emt 0:00:15]} 32. R3d2 {[%emt 0:01:19]} e3 {[%emt 0:01:04]} 33. fxe3 {[%emt 0:00:35]} Ne4 {[%emt 0:00:09]} 34. Re2 {[%emt 0:01:06]} Rf6 {[%emt 0:00:48]} 35. Be1 {[%emt 0:00:28]} Qb7 {[%emt 0:00:02]} 36. Kg1 {[%emt 0:00:55]} Ng5 {[%emt 0:00:58]} 37. Nd2 {[%emt 0:00:41]} Re4 {[%emt 0:00:50]} 38. Bf2 {[%emt 0:00:51]} Nh3+ {[%emt 0:00:13]} 39. Kh2 {[%emt 0:00:14]} Nxf2 {[%emt 0:00:30]} 40. Nxe4 {[%emt 0:00:10]} Nxe4 {[%emt 0:00:18]} 41. Qc2 {[%emt 0:00:23]} Qd5 {[%emt 0:00:43]} 42. Rg2 {[%emt 0:00:50]} Qh5+ {[%emt 0:00:40]} 43. Kg1 {[%emt 0:00:02]} Ng5 {[%emt 0:00:09]} 44. Qc8+ {[%emt 0:01:35]} Bf8 {[%emt 0:00:05]} 45. g4 {[%emt 0:00:08]} Qh4 {[%emt 0:00:20]} 46. Rf1 {[%emt 0:00:55]} Nh3+ {[%emt 0:00:06]} 0-1

[Event "CAT-chT Honor Division 2019"]
[Site "Catalonia"]
[Date "2019.02.23"]
[Round "6.3"]
[White "Boix Moreno, Daniel"]
[Black "Sabria Batlle, Pol"]
[Result "0-1"]
[ECO "C84"]
[WhiteElo "2225"]
[BlackElo "2284"]
[Annotator "NA"]
[PlyCount "72"]
[EventDate "2019.01.16"]
[EventType "team-tourn"]
[EventCountry "ESP"]
[SourceTitle "playchess.com"]
[Source "ChessBase"]
[SourceQuality "1"]
[WhiteTeam "CE Tres Peons"]
[BlackTeam "CE Olot"]
[TimeControl "5400+30"]

1. e4 e5 2. Nf3 Nc6 3. Bb5 a6 4. Ba4 Nf6 5. d3 b5 6. Bb3 Be7 7. a4 b4 8. Nbd2 d6 9. a5 O-O 10. O-O Rb8 11. Re1 h6 12. h3 Re8 13. Nc4 Bf8 14. Bd2 Na7 15. d4 Nc6 16. d5 Ne7 17. Ncxe5 dxe5 18. Nxe5 Nd7 19. Nxf7 Kxf7 20. Qh5+ Kg8 21. d6+ Kh7 22. dxc7 Qxc7 23. Qxe8 Bb7 24. Qh5 Nf6 25. Qf7 Qe5 26. f3 Ng6 27. Be3 Nh4 28. Bf2 Bc5 29. Re2 Nxf3+ 30. gxf3 Qg3+ 31. Kf1 Qxf3 32. Ke1 Bxf2+ 33. Rxf2 Qh1+ 34. Rf1 Qxe4+ 35. Kd2 Qg2+ 36. Ke3 Re8+ 0-1

[Event "CAT-chT Honor Division 2019"]
[Site "Catalonia"]
[Date "2019.02.23"]
[Round "6.4"]
[White "Aymerich Verdaguer, Eduard"]
[Black "Gonzalez Verges, Alex"]
[Result "1-0"]
[ECO "E92"]
[WhiteElo "2204"]
[BlackElo "2223"]
[Annotator "NA"]
[PlyCount "69"]
[EventDate "2019.01.16"]
[EventType "team-tourn"]
[EventCountry "ESP"]
[SourceTitle "playchess.com"]
[Source "ChessBase"]
[SourceQuality "1"]
[WhiteTeam "CE Olot"]
[BlackTeam "CE Tres Peons"]
[TimeControl "5400+30"]

1. d4 Nf6 2. c4 g6 3. Nc3 Bg7 4. e4 d6 5. Be2 Nbd7 6. Nf3 e5 7. dxe5 dxe5 8. h3 O-O 9. Be3 c6 10. Nd2 Qe7 11. O-O Nc5 12. Bxc5 Qxc5 13. Qa4 a5 14. Qc2 Bh6 15. Nb3 Qe7 16. Na4 Be6 17. Rad1 Rfd8 18. Rxd8+ Rxd8 19. Qc3 Qb4 20. Qxe5 Nd7 21. Qc7 Ra8 22. Nd4 Nf8 23. b3 Bg7 24. Rd1 Bxd4 25. Rxd4 Rc8 26. Qd6 Qe1+ 27. Bf1 Re8 28. Nb6 Bc8 29. c5 Ne6 30. Rd2 Nxc5 31. Rd1 Qb4 32. Nxc8 Rxc8 33. Bc4 Re8 34. Qf6 Rf8 35. Bxf7+ 1-0

[Event "CAT-chT Honor Division 2019"]
[Site "Catalonia"]
[Date "2019.02.23"]
[Round "6.5"]
[White "Moll, Arne"]
[Black "Triadu Cassa, Jordi"]
[Result "1/2-1/2"]
[ECO "A03"]
[WhiteElo "2189"]
[BlackElo "2133"]
[Annotator "NA"]
[PlyCount "43"]
[EventDate "2019.01.16"]
[EventType "team-tourn"]
[EventCountry "ESP"]
[SourceTitle "playchess.com"]
[Source "ChessBase"]
[SourceQuality "1"]
[WhiteTeam "CE Tres Peons"]
[BlackTeam "CE Olot"]
[TimeControl "5400+30"]

1. b3 d5 2. Bb2 c6 3. e3 Nf6 4. f4 g6 5. Be2 Bg7 6. Nf3 Bg4 7. O-O O-O 8. c4 e6 9. h3 Bxf3 10. Bxf3 Nbd7 11. Nc3 Ne4 12. Bxe4 dxe4 13. Ba3 c5 14. Qc2 f5 15. Rad1 Qa5 16. Bb2 Rad8 17. d3 exd3 18. Rxd3 Nb8 19. Rfd1 Nc6 20. a3 Rxd3 21. Rxd3 Rd8 22. Qd2 1/2-1/2

[Event "CAT-chT Honor Division 2019"]
[Site "Catalonia"]
[Date "2019.02.23"]
[Round "6.5"]
[White "Medina Masdeu, Rasen"]
[Black "Rios, Cristhian Camilo"]
[Result "0-1"]
[ECO "B34"]
[WhiteElo "2160"]
[BlackElo "2482"]
[Annotator "RC"]
[PlyCount "112"]
[EventDate "2019.01.16"]
[EventType "team-tourn"]
[EventCountry "ESP"]
[SourceTitle "playchess.com"]
[Source "ChessBase"]
[SourceQuality "1"]
[WhiteTeam "Gerunda"]
[BlackTeam "Mollet"]
[TimeControl "5400+30"]

1. e4 c5 {[%emt 0:00:00]} 2. Nf3 {[%emt 0:00:35]} Nc6 3. d4 {[%emt 0:01:52]} cxd4 {[%emt 0:01:15]} 4. Nxd4 {[%emt 0:00:05]} Nf6 {[%emt 0:00:22]} 5. Nc3 {[%emt 0:01:29]} e5 {[%emt 0:00:37]} 6. Ndb5 {[%emt 0:00:43]} d6 {[%emt 0:00:12]} 7. Bg5 {[%emt 0:00:55]} a6 {[%emt 0:00:32]} 8. Na3 {[%emt 0:00:08]} b5 {[%emt 0:00:08]} 9. Nd5 {[%emt 0:11:48]} Be7 {[%emt 0:01:28]} 10. Bxf6 {[%emt 0:00:26]} Bxf6 {[%emt 0:00:09]} 11. c3 {[%emt 0:01:37]} Bg5 {[%emt 0:00:48]} 12. g3 {[%emt 0:02:35]} O-O {[%emt 0:00:41]} 13. Bg2 {[%emt 0:02:44]} Rb8 {[%emt 0:01:46]} 14. h4 {[%emt 0:15:49]} Bh6 {[%emt 0:00:24]} 15. O-O {[%emt 0:00:05]} a5 {[%emt 0:01:48]} 16. Nc2 {[%emt 0:02:34]} Ne7 {[%emt 0:05:43]} 17. Nde3 {[%emt 0:09:14]} Bxe3 {[%emt 0:04:30]} 18. Nxe3 {[%emt 0:01:15]} Be6 {[%emt 0:00:07]} 19. Qd3 {[%emt 0:05:45]} Qb6 {[%emt 0:00:14]} 20. Rfd1 {[%emt 0:02:11]} Rfd8 {[%emt 0:00:14]} 21. Rd2 {[%emt 0:00:56]} Qc5 {[%emt 0:00:09]} 22. Kh2 {[%emt 0:08:16]} Rbc8 {[%emt 0:08:13]} 23. Bh3 {[%emt 0:01:22]} b4 {[%emt 0:01:40]} 24. c4 {[%emt 0:01:27]} Nc6 {[%emt 0:00:08]} 25. b3 {[%emt 0:01:02]} a4 {[%emt 0:01:12]} 26. Nc2 {[%emt 0:01:50]} Ra8 {[%emt 0:00:59]} 27. Rad1 {[%emt 0:05:44]} Na5 {[%emt 0:01:28]} 28. Qf3 {[%emt 0:02:25]} Qb6 {[%emt 0:02:33]} 29. h5 {[%emt 0:00:35]} h6 {[%emt 0:00:07]} 30. Ne1 {[%emt 0:05:00]} Nb7 {[%emt 0:04:33]} 31. Ng2 {[%emt 0:06:08]} Nc5 {[%emt 0:04:17]} 32. Bxe6 {[%emt 0:00:02]} fxe6 {[%emt 0:00:12]} 33. Qe3 {[%emt 0:00:06]} axb3 {[%emt 0:00:58]} 34. axb3 {[%emt 0:00:01]} Qc6 {[%emt 0:01:22]} 35. f3 {[%emt 0:01:01]} Ra3 {[%emt 0:00:15]} 36. Rb1 {[%emt 0:00:09]} Qe8 {[%emt 0:00:15]} 37. g4 {[%emt 0:00:22]} Qe7 {[%emt 0:00:06]} 38. Kg3 {[%emt 0:00:55]} Rb8 {[%emt 0:13:25]} 39. Nh4 {[%emt 0:00:53]} Qg5 {[%emt 0:00:03]} 40. Re2 {[%emt 0:00:14]} Qf4+ {[%emt 0:02:08]} 41. Kh3 {[%emt 0:01:20]} Qxe3 {[%emt 0:08:12]} 42. Rxe3 {[%emt 0:00:02]} Kf7 {[%emt 0:00:11]} 43. Ng2 {[%emt 0:00:50]} Ra2 {[%emt 0:09:01]} 44. f4 {[%emt 0:02:39]} Rxg2 {[%emt 0:06:10]} 45. Kxg2 {[%emt 0:00:01]} exf4 {[%emt 0:00:10]} 46. Rf3 {[%emt 0:00:00]} e5 {[%emt 0:00:02]} 47. Ra1 {[%emt 0:00:24]} Rb7 {[%emt 0:03:25]} 48. Ra8 {[%emt 0:00:34]} Nxe4 {[%emt 0:02:33]} 49. Rd8 {[%emt 0:00:28]} Ke7 {[%emt 0:01:50]} 50. Rg8 {[%emt 0:00:21]} Kf6 {[%emt 0:00:15]} 51. Rd3 {[%emt 0:00:13]} Kg5 {[%emt 0:00:11]} 52. Rd8 {[%emt 0:04:48]} Kxg4 {[%emt 0:00:38]} 53. R8xd6 {[%emt 0:00:10]} Nxd6 {[%emt 0:00:08]} 54. Rxd6 {[%emt 0:00:04]} Ra7 {[%emt 0:01:16]} 55. Rg6+ {[%emt 0:00:37]} Kxh5 {[%emt 0:00:08]} 56. Rb6 {[%emt 0:00:07]} Kg4 {[%emt 0:00:22]} 0-1

[Event "CAT-chT Honor Division 2019"]
[Site "Catalonia"]
[Date "2019.02.23"]
[Round "6.6"]
[White "Lever, Erwan"]
[Black "Gonzalez Garcia, Marc"]
[Result "1-0"]
[ECO "E11"]
[WhiteElo "2275"]
[BlackElo "2177"]
[Annotator "NA"]
[PlyCount "144"]
[EventDate "2019.01.16"]
[EventType "team-tourn"]
[EventCountry "ESP"]
[SourceTitle "playchess.com"]
[Source "ChessBase"]
[SourceQuality "1"]
[WhiteTeam "CE Olot"]
[BlackTeam "CE Tres Peons"]
[TimeControl "5400+30"]

1. d4 d5 2. c4 e6 3. Nf3 Nf6 4. g3 Bb4+ 5. Bd2 Be7 6. Bg2 O-O 7. O-O c6 8. Qc2 Nbd7 9. Rd1 Ne4 10. Bf4 g5 11. Bc1 f5 12. Nc3 Nd6 13. cxd5 exd5 14. Ne5 Nb6 15. f4 g4 16. b4 a6 17. Rb1 Be6 18. a4 Rc8 19. Qd3 Nbc4 20. b5 axb5 21. axb5 Bf6 22. bxc6 bxc6 23. Na4 Bxe5 24. dxe5 Ne4 25. Ba3 Rf7 26. Bb4 c5 27. Bxe4 fxe4 28. Qxc4 dxc4 29. Rxd8+ Rxd8 30. Nxc5 Bf5 31. Rc1 Rb8 32. Rxc4 Rc7 33. Ba3 e3 34. Rc3 Rb1+ 35. Bc1 Bc8 36. Kf1 Kf7 37. Ke1 h5 38. Kd1 Bf5 39. Rc4 Ke7 40. Rc3 Rc6 41. Na4 Rxc3 42. Nxc3 Rb3 43. Nd5+ Ke6 44. Nxe3 Be4 45. Kd2 Rb1 46. Nd1 Rb7 47. Nc3 Rd7+ 48. Ke3 Ba8 49. Bd2 Bc6 50. Be1 Kf5 51. Kf2 Rb7 52. Nd1 Rb3 53. Ne3+ Ke4 54. Nc4 Kf5 55. Nd6+ Ke6 56. Ba5 Kd5 57. Nf5 Ke4 58. Ng7 Bb5 59. Nxh5 Rb2 60. Nf6+ Kf5 61. Ke3 Rxe2+ 62. Kd4 Rxh2 63. Nd5 Re2 64. Bb4 Be8 65. Ne7+ Ke6 66. f5+ Kf7 67. Nd5 Bd7 68. Nf4 Rb2 69. Bc3 Rb1 70. e6+ Bxe6 71. fxe6+ Kf6 72. Ke4+ Ke7 1-0

[Event "CAT-chT Honor Division 2019"]
[Site "Catalonia"]
[Date "2019.02.23"]
[Round "6.6"]
[White "Fernandez Diaz, Cristian"]
[Black "Molina Carretero, Daniel"]
[Result "1-0"]
[ECO "A45"]
[WhiteElo "2224"]
[BlackElo "2114"]
[Annotator "NA"]
[PlyCount "103"]
[EventDate "2019.01.16"]
[EventType "team-tourn"]
[EventCountry "ESP"]
[SourceTitle "playchess.com"]
[Source "ChessBase"]
[SourceQuality "1"]
[WhiteTeam "Mollet"]
[BlackTeam "Gerunda"]
[TimeControl "5400+30"]

1. d4 Nf6 {[%emt 0:00:00]} 2. Bg5 {[%emt 0:00:00]} e6 {[%emt 0:00:38]} 3. e4 {[%emt 0:00:00]} h6 {[%emt 0:00:37]} 4. Bxf6 {[%emt 0:00:00]} Qxf6 5. c3 {[%emt 0:00:00]} d6 {[%emt 0:01:41]} 6. Bd3 g5 {[%emt 0:05:47]} 7. Ne2 {[%emt 0:00:47]} Bg7 {[%emt 0:02:24]} 8. Ng3 {[%emt 0:01:18]} e5 {[%emt 0:02:48]} 9. d5 Qg6 {[%emt 0:15:17]} 10. Na3 {[%emt 0:17:00]} h5 {[%emt 0:02:08]} 11. Bb5+ {[%emt 0:05:38]} Kd8 {[%emt 0:26:43]} 12. h4 {[%emt 0:10:33]} Bg4 {[%emt 0:07:08]} 13. Be2 {[%emt 0:01:36]} gxh4 {[%emt 0:06:10]} 14. Rxh4 {[%emt 0:02:20]} Bf6 {[%emt 0:01:25]} 15. Rh2 {[%emt 0:00:54]} h4 {[%emt 0:01:58]} 16. Bxg4 {[%emt 0:03:03]} hxg3 {[%emt 0:00:12]} 17. Rxh8+ {[%emt 0:00:13]} Bxh8 {[%emt 0:00:18]} 18. Qf3 {[%emt 0:01:34]} gxf2+ {[%emt 0:05:23]} 19. Kxf2 {[%emt 0:00:18]} Qf6 {[%emt 0:13:25]} 20. Rh1 {[%emt 0:01:44]} Na6 {[%emt 0:01:30]} 21. Rh7 {[%emt 0:11:32]} Ke7 {[%emt 0:00:56]} 22. b4 {[%emt 0:03:03]} Rg8 {[%emt 0:02:34]} 23. Bh5 {[%emt 0:02:52]} Bg7 {[%emt 0:00:23]} 24. Qxf6+ {[%emt 0:02:07]} Kxf6 {[%emt 0:00:09]} 25. Bg4 {[%emt 0:00:50]} c6 {[%emt 0:01:12]} 26. dxc6 {[%emt 0:05:59]} bxc6 {[%emt 0:00:03]} 27. Bd7 {[%emt 0:02:48]} Nb8 {[%emt 0:00:20]} 28. Bf5 {[%emt 0:00:36]} Ke7 {[%emt 0:01:45]} 29. Nc4 {[%emt 0:01:36]} Bf6 {[%emt 0:00:35]} 30. a4 {[%emt 0:03:27]} Bg5 {[%emt 0:00:38]} 31. g4 {[%emt 0:01:29]} Bf6 {[%emt 0:00:14]} 32. b5 {[%emt 0:02:19]} cxb5 {[%emt 0:00:35]} 33. Ne3 {[%emt 0:00:32]} Bg5 {[%emt 0:00:38]} 34. Nd5+ {[%emt 0:00:23]} Kf8 {[%emt 0:00:34]} 35. axb5 {[%emt 0:00:14]} Bd8 {[%emt 0:00:15]} 36. Rh1 {[%emt 0:01:43]} Kg7 {[%emt 0:00:43]} 37. Rh7+ {[%emt 0:01:56]} Kf8 {[%emt 0:00:02]} 38. Kg2 {[%emt 0:00:22]} Bb6 {[%emt 0:00:26]} 39. Nf6 {[%emt 0:00:31]} Bc5 {[%emt 0:01:17]} 40. Nxg8 {[%emt 0:00:44]} Kxg8 {[%emt 0:00:01]} 41. Rh1 {[%emt 0:00:49]} Kg7 {[%emt 0:00:13]} 42. Ra1 {[%emt 0:00:57]} Kf6 {[%emt 0:00:12]} 43. Kf3 {[%emt 0:00:19]} Bb6 {[%emt 0:00:34]} 44. Ke2 {[%emt 0:00:25]} Bc5 {[%emt 0:01:03]} 45. Kd3 {[%emt 0:00:15]} Kg7 {[%emt 0:00:29]} 46. Kc4 {[%emt 0:00:14]} Kf6 {[%emt 0:00:10]} 47. Kd5 {[%emt 0:00:34]} Kg7 {[%emt 0:00:28]} 48. g5 {[%emt 0:00:27]} Kg8 {[%emt 0:00:01]} 49. Rh1 {[%emt 0:02:19]} Kg7 {[%emt 0:00:18]} 50. Bc8 {[%emt 0:02:28]} Kg8 {[%emt 0:01:11]} 51. Rh6 {[%emt 0:00:12]} Kg7 {[%emt 0:00:27]} 52. Rxd6 {[%emt 0:00:38]} 1-0

[Event "CAT-chT Honor Division 2019"]
[Site "Catalonia"]
[Date "2019.02.23"]
[Round "6.7"]
[White "Leiro Giralt, Daniel"]
[Black "Vinardell Cruanas, Sergi"]
[Result "1/2-1/2"]
[ECO "B70"]
[WhiteElo "2174"]
[BlackElo "2165"]
[Annotator "NA"]
[PlyCount "37"]
[EventDate "2019.01.16"]
[EventType "team-tourn"]
[EventCountry "ESP"]
[SourceTitle "playchess.com"]
[Source "ChessBase"]
[SourceQuality "1"]
[WhiteTeam "CE Tres Peons"]
[BlackTeam "CE Olot"]
[TimeControl "5400+30"]

1. e4 c5 2. Nc3 d6 3. Nge2 Nc6 4. g3 g6 5. d4 cxd4 6. Nxd4 Nf6 7. Bg2 Nxd4 8. Qxd4 Bg7 9. Bg5 h6 10. Be3 O-O 11. Qd2 Ng4 12. Bd4 e5 13. Be3 Be6 14. O-O Nxe3 15. Qxe3 Qc7 16. Rfd1 a6 17. Rd2 b5 18. Qd3 Rfd8 19. a4 1/2-1/2